bitfinex/quotes_ETHUSD_20260130
["timestamp","ask_amount","ask_price","bid_price","bid_amount"]
[1769781246777,0.769,2729.0,2727.8,1.35165926]
[1769781247295,13.13971903,2729.2,2727.8,1.35165926]
[1769781247607,13.13971903,2729.2,2727.8,14.85723622]
[1769781247807,0.769,2729.1,2727.8,14.85723622]
[1769781247985,1.3908719,2729.0,2727.9,14.94155096]
[1769781248591,0.769,2729.1,2727.9,14.94155096]
[1769781248977,13.13971903,2729.2,2727.9,14.94155096]
[1769781249178,0.769,2729.0,2727.9,1.435974]
[1769781249392,0.769,2729.0,2727.6,13.50557696]
[1769781249805,13.13971903,2729.5,2727.7,0.01101564]
[1769781250110,13.90871903,2729.4,2727.8,13.50557696]
[1769781251105,0.9101481,2729.6,2728.2,13.50557696]
[1769781251106,0.3146171,2729.6,2728.2,13.50557696]
[1769781251313,0.769,2729.5,2728.2,13.50557696]
[1769781251496,13.90871903,2729.5,2728.3,1.3505577]
[1769781252410,0.769,2729.4,2728.3,14.85613466]
[1769781252707,14.50425003,2729.4,2727.7,13.5165926]
[1769781252913,13.90871903,2729.4,2727.7,13.50557696]
[1769781253714,13.90871903,2729.4,2727.8,13.5165926]
[1769781255413,13.90871903,2729.4,2727.8,13.50557696]
[1769781256886,13.13971903,2729.2,2727.8,13.50557696]
[1769781257085,14.51324403,2729.1,2727.8,14.85613466]
[1769781257927,0.3146171,2729.6,2728.3,13.50557696]
[1769781258220,14.22333613,2729.6,2728.3,13.50557696]
[1769781258932,14.22333613,2729.6,2727.9,13.5165926]
[1769781259827,13.45433613,2729.6,2727.9,13.5165926]
[1769781260020,13.13971903,2729.4,2728.0,14.85723622]
[1769781261032,2.12467361,2729.5,2728.2,13.50557696]
[1769781261232,2.12367361,2729.5,2728.2,13.50557696]
[1769781262893,1.35567361,2729.5,2728.6,13.50557696]
[1769781263094,0.3146171,2729.6,2728.8,13.50557696]
[1769781263501,0.3146171,2729.6,2728.5,13.5165926]
[1769781263711,0.3146171,2729.6,2728.7,13.5165926]
[1769781264827,0.3146171,2729.6,2728.7,13.50557696]
[1769781265750,0.001,2730.0,2729.1,13.50557696]
[1769781266040,0.001,2730.0,2729.2,1.35165926]
[1769781266343,0.001,2730.0,2729.2,14.85723622]
[1769781266642,0.001,2730.6,2729.4,13.50557696]
[1769781266802,0.001,2730.6,2729.3,0.01101564]
[1769781266803,13.14071903,2730.6,2729.3,0.01101564]
[1769781267008,13.14071903,2730.6,2729.2,14.86825186]
[1769781267203,14.45489093,2730.6,2729.4,13.50557696]
[1769781268108,14.45489093,2730.6,2729.3,1.47824526]
[1769781268109,0.001,2730.6,2729.6,13.50557696]
[1769781268345,13.14071903,2730.6,2729.3,14.98382222]
[1769781268945,13.14071903,2730.6,2729.4,13.5165926]
[1769781269136,13.14071903,2730.6,2729.5,14.85723622]
[1769781269336,13.14071903,2730.6,2729.5,1.35165926]
[1769781269508,13.14071903,2730.6,2729.2,13.5165926]
[1769781275250,13.14071903,2730.6,2729.2,13.50557696]
[1769781275544,13.14071903,2730.6,2729.4,13.50557696]
[1769781275737,0.001,2730.4,2729.4,13.50557696]
[1769781276555,12.92429667,2730.4,2728.8,13.23680601]
[1769781276850,12.92429667,2730.4,2729.0,13.23680601]
[1769781279973,13.8399337,2730.4,2728.7,13.36059688]
[1769781280278,12.92429667,2730.4,2729.0,13.37161252]
[1769781280580,14.37665257,2730.3,2729.1,14.69775813]
[1769781280873,14.81254546,2730.3,2728.7,0.01101564]
[1769781281074,14.37665257,2730.3,2728.8,13.36059688]
[1769781281286,0.768,2730.2,2729.0,13.37161252]
[1769781281436,14.37665257,2730.3,2729.0,13.37161252]
[1769781281837,0.768,2730.2,2729.0,13.36059688]
[1769781282038,1.51446526,2730.1,2729.1,1.33605969]
[1769781282677,1.51446526,2730.1,2729.1,14.70767221]
[1769781282971,0.768,2730.2,2729.1,14.70767221]
[1769781283178,13.7754229,2730.3,2729.2,13.37161252]
[1769781283685,0.001,2730.4,2729.2,13.36059688]
[1769781285075,0.001,2730.4,2729.3,13.37161252]
[1769781287663,0.001,2730.4,2729.6,13.36059688]
[1769781287988,0.001,2730.4,2729.7,1.33716125]
[1769781288206,13.0084229,2730.4,2729.0,13.36059688]
[1769781288409,13.0084229,2730.4,2729.5,0.002]
[1769781288902,0.001,2730.2,2729.5,0.002]
[1769781289055,0.001,2730.2,2729.5,13.36259688]
[1769781289261,0.001,2730.2,2729.7,13.36059688]
[1769781289486,0.001,2730.4,2729.7,13.36059688]
[1769781291991,0.001,2730.6,2730.0,13.36059688]
[1769781292157,0.001,2730.6,2729.8,0.77901564]
[1769781292558,0.001,2730.6,2729.8,14.13961252]
[1769781292787,0.001,2730.6,2729.9,1.41396125]
[1769781295491,0.32828345,2731.4,2730.6,13.36059688]
[1769781295658,0.001,2731.5,2731.2,0.01101564]
[1769781295862,0.001,2731.5,2731.0,0.01101564]
[1769781296085,0.001,2731.5,2731.1,1.33716125]
[1769781296796,0.001,2731.5,2730.8,13.36059688]
[1769781297159,0.001,2731.5,2730.5,13.37161252]
[1769781297393,0.001,2731.5,2730.6,0.768]
[1769781299790,0.001,2731.5,2730.5,13.37161252]
[1769781299988,0.001,2731.5,2730.6,0.768]
[1769781300189,0.001,2731.5,2730.7,1.41396125]
[1769781300694,0.001,2731.5,2730.9,13.37161252]
[1769781300893,0.001,2731.5,2730.9,13.36059688]
[1769781301483,0.001,2731.5,2730.8,14.5]
[1769781301687,0.001,2731.5,2730.7,2.18196125]
[1769781301883,0.001,2731.5,2730.8,14.77654015]
[1769781302264,0.001,2731.7,2730.9,13.36059688]
[1769781302467,0.001,2731.7,2730.8,1.42695891]
[1769781302667,0.001,2731.7,2730.8,14.78755579]
[1769781303304,13.0074229,2732.8,2731.1,13.36059688]
[1769781303601,14.30816519,2732.7,2731.3,13.36059688]
[1769781304968,14.30816519,2732.7,2731.2,2.10516125]
[1769781305193,14.30816519,2732.7,2731.3,0.768]
[1769781305473,14.30816519,2732.7,2731.0,0.768]
[1769781305894,15.22301328,2732.7,2731.0,0.768]
[1769781306099,13.0074229,2732.5,2731.0,0.768]
[1769781307496,1.52230133,2732.6,2731.3,12.85691254]
[1769781307681,2.29030133,2732.6,2731.3,12.85691254]
[1769781307872,16.28573674,2732.6,2731.0,12.86792818]
[1769781308069,16.28573674,2732.6,2731.0,14.5]
[1769781308300,13.99543541,2732.4,2731.1,1.45]
[1769781308507,13.99543541,2732.4,2731.1,14.30691254]
[1769781309377,1.72006037,2732.5,2731.2,12.86792818]
[1769781309600,13.99543541,2732.5,2731.2,12.86792818]
[1769781309809,13.99543541,2732.5,2731.1,1.45]
[1769781310483,0.768,2732.4,2731.1,1.45]
[1769781310695,13.99543541,2732.3,2731.1,1.45]
[1769781312920,0.768,2732.4,2731.3,12.85691254]
[1769781313089,0.768,2732.4,2731.4,1.28679282]
[1769781313902,14.76343541,2732.4,2731.4,1.28679282]
[1769781314219,14.76343541,2732.4,2731.2,0.002]
[1769781314393,13.99643541,2732.3,2731.2,0.002]
[1769781320512,0.768,2732.2,2731.2,12.85891254]
[1769781320821,0.001,2732.3,2731.2,12.85891254]
[1769781321025,0.768,2732.2,2731.2,12.85891254]
[1769781321213,0.001,2732.3,2731.3,1.28589125]
[1769781321414,0.768,2732.2,2731.3,1.28589125]
[1769781322236,13.99543541,2732.1,2731.2,0.002]
[1769781322999,0.001,2732.3,2731.2,12.85891254]
[1769781323202,0.769,2732.3,2731.2,12.85891254]
[1769781323392,14.76443541,2732.3,2731.2,0.002]
[1769781323594,13.99543541,2732.1,2731.2,0.002]
[1769781326430,0.768,2732.0,2731.2,0.002]
[1769781326925,0.769,2732.0,2731.2,0.002]
[1769781327096,0.001,2732.0,2731.2,0.002]
[1769781327628,0.768,2731.9,2731.2,0.002]
[1769781329221,2.24444354,2731.9,2731.2,0.002]
[1769781329411,1.47644354,2731.9,2731.2,0.002]
[1769781329610,2.24444354,2731.9,2731.2,0.002]
[1769781329912,1.47644354,2731.9,2731.2,0.002]
[1769781330100,0.768,2731.9,2731.2,0.002]
[1769781330425,0.001,2732.0,2731.5,0.01101564]
[1769781330629,0.001,2732.0,2731.4,12.85691254]
[1769781330827,0.001,2732.3,2731.4,12.85691254]
[1769781331328,0.001,2732.3,2731.5,12.86792818]
[1769781333241,0.001,2732.3,2731.8,12.85691254]
[1769781334228,0.9145819,2733.5,2731.8,12.85691254]
[1769781334229,13.99543541,2733.4,2732.1,0.01101564]
[1769781334430,13.99543541,2733.4,2732.1,12.86792818]
[1769781334606,0.768,2733.5,2732.1,12.86792818]
[1769781334801,0.1024,2733.4,2732.1,12.86792818]
[1769781335002,0.1024,2733.4,2732.2,12.85691254]
[1769781335231,0.34191397,2733.6,2732.4,12.85691254]
[1769781336213,14.33734938,2733.6,2732.4,12.85691254]
[1769781336617,14.33734938,2733.6,2732.4,27.35691254]
[1769781338739,14.33734938,2733.6,2732.1,12.63533315]
[1769781338919,13.8253319,2733.4,2731.8,12.63533315]
[1769781339114,13.8263319,2733.4,2731.9,12.64634879]
[1769781339433,13.8263319,2733.4,2732.0,27.13533315]
[1769781339738,13.8263319,2733.4,2732.1,12.63533315]
[1769781340039,1.53368668,2733.3,2732.1,12.64634879]
[1769781340443,0.767,2733.2,2732.1,12.64634879]
[1769781341744,14.5923319,2733.2,2732.1,12.63533315]
[1769781342046,14.5923319,2733.2,2731.9,27.13533315]
[1769781342409,14.5923319,2733.2,2731.7,12.63533315]
[1769781342609,15.43793376,2733.1,2731.7,13.40233315]
[1769781342809,15.43793376,2733.1,2731.8,0.01101564]
[1769781343010,15.43793376,2733.1,2731.8,27.14634879]
[1769781343648,15.43793376,2733.1,2731.6,0.767]
[1769781344156,1.61260186,2733.1,2732.1,12.63533315]
[1769781344309,0.767,2733.2,2732.1,12.64634879]
[1769781345313,0.001,2733.4,2732.1,12.64634879]
[1769781345531,13.8263319,2733.4,2732.1,12.64634879]
[1769781347428,13.8263319,2733.4,2732.3,12.64634879]
[1769781347624,0.001,2733.4,2732.3,12.64634879]
[1769781347823,0.001,2733.4,2732.4,12.63533315]
[1769781352955,0.001,2733.4,2732.3,0.002]
[1769781352956,13.8253319,2733.3,2732.3,0.002]
[1769781353852,13.8253319,2732.7,2731.2,0.002]
[1769781354037,14.6947319,2732.6,2731.3,0.01101564]
[1769781354240,0.1024,2732.4,2731.3,0.01101564]
[1769781354443,13.9277319,2732.4,2731.3,0.01101564]
[1769781354645,13.9277319,2732.4,2731.2,0.002]
[1769781355643,14.5923319,2732.4,2731.3,12.64634879]
[1769781356326,14.5923319,2732.4,2731.3,12.63533315]
[1769781356527,14.5923319,2732.4,2730.9,0.77801564]
[1769781356528,13.8253319,2731.8,2730.2,12.63533315]
[1769781356830,13.8253319,2731.6,2730.3,0.01101564]
[1769781357020,0.767,2731.7,2730.6,0.01101564]
[1769781360559,14.5923319,2731.7,2730.6,0.01101564]
[1769781360762,14.5923319,2731.7,2730.5,0.70175219]
[1769781360932,14.5923319,2731.7,2730.7,0.01101564]
[1769781361132,14.5923319,2731.7,2730.5,0.70175219]
[1769781361343,14.5923319,2731.7,2730.7,0.01101564]
[1769781361541,1.45923319,2731.6,2730.7,0.01101564]
[1769781362659,1.45923319,2731.6,2730.5,0.70175219]
[1769781362963,15.28456509,2731.6,2730.5,0.70175219]
[1769781363149,15.28456509,2731.6,2730.5,0.69073655]
[1769781363538,15.28456509,2731.6,2730.9,0.002]
[1769781363734,15.43048841,2731.5,2730.9,0.002]
[1769781367751,0.768,2731.4,2730.9,0.002]
[1769781367971,14.26312307,2731.4,2730.9,0.002]
[1769781368876,0.768,2731.4,2730.9,0.002]
[1769781369889,13.49512307,2732.3,2731.1,12.66854835]
[1769781370194,13.49512307,2732.3,2731.2,0.01101564]
[1769781370195,0.768,2732.2,2731.2,0.01101564]
[1769781370492,0.768,2732.2,2731.4,0.01101564]
[1769781370801,0.768,2732.2,2731.4,12.67956399]
[1769781370952,13.49612307,2733.2,2731.7,12.67956399]
[1769781371147,14.26312307,2733.1,2731.6,12.66854835]
[1769781371388,13.59752307,2733.0,2731.8,12.67956399]
[1769781371676,13.59752307,2733.0,2732.0,0.01101564]
[1769781371677,1.43655231,2732.9,2732.0,0.01101564]
[1769781371954,0.1024,2733.0,2732.0,0.01101564]
[1769781372364,13.59752307,2733.0,2731.8,12.67956399]
[1769781373067,14.51226911,2733.0,2731.4,0.01101564]
[1769781373287,0.768,2732.9,2731.2,12.67956399]
[1769781373481,13.49512307,2732.7,2731.4,0.01101564]
[1769781374105,13.49512307,2732.7,2731.4,12.67956399]
[1769781374402,13.49512307,2732.7,2731.6,0.01101564]
[1769781375279,13.49512307,2732.7,2731.4,12.67956399]
[1769781375791,0.001,2732.5,2731.4,12.67956399]
[1769781375985,1.35061231,2732.5,2731.4,12.67956399]
[1769781376668,14.84573538,2732.5,2731.4,0.01101564]
[1769781376869,14.84573538,2732.5,2731.2,0.01101564]
[1769781377070,14.84573538,2732.5,2731.4,0.01101564]
[1769781377266,14.84573538,2732.5,2731.2,0.01101564]
[1769781377472,14.84573538,2732.5,2730.9,12.68156399]
[1769781377473,14.97969661,2732.4,2730.9,12.68156399]
[1769781377668,13.49512307,2732.2,2730.9,12.68156399]
[1769781377874,13.49512307,2732.2,2730.9,0.002]
[1769781378204,14.41023484,2732.0,2730.9,0.002]
[1769781378391,13.49512307,2731.8,2730.9,0.002]
[1769781378630,13.49512307,2731.6,2730.6,0.002]
[1769781379801,13.59752307,2731.8,2730.6,0.002]
[1769781380000,0.768,2731.5,2730.6,0.002]
[1769781380510,14.26312307,2731.5,2730.6,0.002]
[1769781380806,14.92143538,2731.4,2730.6,0.002]
[1769781383312,0.768,2731.3,2730.6,0.01301564]
[1769781383520,0.768,2731.3,2730.6,0.002]
[1769781383884,13.49512307,2731.7,2730.6,12.68156399]
[1769781384112,0.768,2731.6,2730.6,12.68156399]
[1769781384416,1.42631231,2731.5,2730.6,12.68156399]
[1769781384592,1.42631231,2731.5,2730.6,12.67054835]
[1769781384779,1.42631231,2731.5,2730.6,0.002]
[1769781385519,14.92143538,2731.5,2730.6,0.002]
[1769781387223,14.92143538,2731.5,2730.8,0.002]
[1769781387406,1.56894354,2731.4,2730.8,0.002]
[1769781387612,0.001,2731.3,2730.8,0.002]
[1769781390622,0.769,2731.3,2730.8,0.002]
[1769781395223,0.001,2731.3,2730.8,0.002]
[1769781395407,0.769,2731.3,2730.8,0.002]
[1769781398128,13.69754067,2731.2,2730.6,0.002]
[1769781399333,0.768,2731.2,2730.6,0.002]
[1769781399721,0.001,2731.3,2730.6,0.002]
[1769781399934,0.768,2731.1,2730.6,0.002]
[1769781400519,0.769,2731.1,2730.6,0.002]
[1769781400819,0.768,2731.0,2730.6,0.002]
[1769781402623,0.769,2731.1,2730.6,13.16766641]
[1769781403214,0.769,2731.1,2730.6,0.002]
[1769781405008,14.71584309,2731.1,2730.6,0.002]
[1769781405534,1.78630242,2731.1,2730.6,0.002]
[1769781405752,0.768,2731.0,2730.6,0.002]
[1769781405925,0.769,2731.1,2730.6,13.16766641]
[1769781406435,0.769,2731.1,2730.6,0.002]
[1769781406735,1.36985407,2731.0,2730.6,0.002]
[1769781408950,0.769,2731.1,2730.6,0.002]
[1769781410036,0.769,2731.1,2730.6,13.16766641]
[1769781411947,0.001,2731.1,2730.6,13.16766641]
[1769781412642,0.001,2731.1,2730.8,0.002]
[1769781421275,12.93054067,2731.1,2729.9,0.002]
[1769781421580,12.92954067,2730.9,2729.9,0.002]
[1769781421865,12.92954067,2730.7,2729.9,0.002]
[1769781422088,0.768,2730.6,2729.9,13.16766641]
[1769781422946,0.768,2730.7,2729.9,13.16766641]
[1769781423787,12.92954067,2730.9,2729.9,13.16766641]
[1769781423976,0.768,2730.8,2729.9,13.16766641]
[1769781425560,0.768,2730.7,2730.1,0.002]
[1769781425761,2.13775407,2730.7,2730.1,0.002]
[1769781428706,1.36975407,2730.7,2730.1,0.002]
[1769781429006,2.13775407,2730.7,2730.1,0.002]
[1769781430060,0.001,2730.9,2730.3,0.01101564]
[1769781430291,0.001,2730.9,2730.1,0.01301564]
[1769781430292,0.001,2730.9,2730.4,12.79574446]
[1769781430460,0.001,2730.9,2730.4,12.78472882]
[1769781431700,0.001,2730.9,2730.2,14.5]
[1769781432003,0.001,2730.9,2730.3,12.78472882]
[1769781436929,13.58563101,2730.9,2730.1,0.002]
[1769781437505,13.58563101,2730.9,2730.3,0.002]
[1769781437820,0.001,2730.7,2730.3,0.002]
[1769781438959,1.3596631,2730.7,2730.3,0.002]
[1769781442213,14.94429411,2730.7,2730.3,0.002]
[1769781442736,14.94429411,2730.7,2730.1,0.002]
[1769781443202,15.71229411,2730.7,2730.1,0.002]
[1769781450781,0.768,2730.6,2730.1,0.002]
[1769781450940,2.33922941,2730.6,2730.1,12.78672882]
[1769781451255,0.768,2730.6,2730.1,12.78672882]
[1769781452353,0.768,2730.6,2730.3,0.002]
[1769781452541,0.001,2730.5,2730.3,0.002]
[1769781457988,0.001,2730.5,2730.3,13.2670213]
[1769781458152,0.001,2730.7,2730.3,13.2670213]
[1769781461785,0.001,2731.1,2730.5,13.2650213]
[1769781462387,0.001,2731.1,2730.6,13.2650213]
[1769781465699,0.001,2730.9,2730.6,27.7650213]
[1769781468599,0.001,2730.9,2730.6,13.2650213]
[1769781469108,0.001,2730.9,2730.6,27.7650213]
[1769781470374,0.001,2730.9,2730.6,14.5]
[1769781470989,0.001,2730.9,2730.4,13.2650213]
[1769781471310,0.001,2730.9,2730.5,13.27603694]
[1769781471676,0.001,2731.1,2730.6,13.2650213]
[1769781471899,0.001,2731.1,2730.5,0.01101564]
[1769781472083,0.001,2731.1,2730.4,14.51101564]
[1769781472301,0.001,2731.1,2730.4,27.77603694]
[1769781474084,0.001,2731.1,2730.5,13.2650213]
[1769781476572,0.001,2731.1,2730.7,13.2650213]
[1769781477515,0.001,2731.3,2730.6,0.01101564]
[1769781477516,0.001,2731.3,2730.9,13.2650213]
[1769781477824,0.62550878,2731.4,2731.0,13.2650213]
[1769781478019,14.01191779,2732.1,2731.1,13.2650213]
[1769781478308,13.24391779,2732.1,2731.1,13.2650213]
[1769781478509,14.01191779,2732.1,2731.2,0.01101564]
[1769781479013,13.24391779,2732.1,2731.2,0.01101564]
[1769781479193,13.24391779,2732.1,2731.3,13.2650213]
[1769781479520,13.24391779,2732.1,2731.0,13.2650213]
[1769781480316,13.24391779,2732.1,2731.2,13.2650213]
[1769781480486,13.24391779,2732.1,2731.2,14.0330213]
[1769781480887,13.24391779,2732.7,2731.2,14.0330213]
[1769781481109,13.24391779,2732.6,2731.3,13.2650213]
[1769781481413,13.24391779,2732.6,2731.5,13.2650213]
[1769781481586,13.24391779,2732.6,2731.7,13.2650213]
[1769781481781,13.24391779,2732.8,2731.9,13.2650213]
[1769781482203,14.01191779,2733.0,2731.9,13.2650213]
[1769781482484,0.001,2733.2,2732.1,13.2650213]
[1769781482711,13.24491779,2733.2,2732.3,13.2650213]
[1769781482916,0.001,2733.2,2732.3,13.2650213]
[1769781483218,0.001,2733.2,2732.4,0.01101564]
[1769781483426,0.001,2733.2,2732.4,13.27603694]
[1769781483982,0.001,2733.2,2732.6,0.01101564]
[1769781484189,0.001,2733.2,2732.7,13.2650213]
[1769781485503,0.001,2733.2,2732.8,0.01101564]
[1769781486014,0.001,2733.2,2732.7,13.2650213]
[1769781486214,0.001,2733.2,2732.6,0.01101564]
[1769781486394,12.60429046,2733.2,2732.3,13.6562903]
[1769781486599,12.60429046,2733.2,2732.4,0.77901564]
[1769781486908,12.60329046,2733.1,2732.1,15.8112228]
[1769781487212,12.60329046,2732.8,2732.1,2.1549325]
[1769781489187,12.60329046,2733.0,2732.1,2.1549325]
[1769781489395,1.33712905,2732.9,2732.1,2.1549325]
[1769781489617,13.37129046,2733.0,2732.1,2.1549325]
[1769781489919,13.37229046,2733.0,2732.1,15.82223844]
[1769781490118,12.60429046,2733.0,2732.1,15.82223844]
[1769781490923,12.60429046,2733.0,2732.1,15.8112228]
[1769781491891,12.60429046,2733.0,2732.2,0.01101564]
[1769781492093,1.33832905,2733.0,2732.2,0.01101564]
[1769781492321,0.001,2733.0,2732.1,15.8112228]
[1769781492618,12.60429046,2733.0,2732.1,15.8112228]
[1769781492819,12.60429046,2733.0,2732.1,2.1549325]
[1769781493022,12.60429046,2733.0,2732.1,15.8112228]
[1769781493397,12.60429046,2733.0,2732.1,2.1549325]
[1769781493698,2.113763,2732.8,2731.4,13.6562903]
[1769781493901,12.60329046,2732.7,2731.4,13.6562903]
[1769781494103,12.60329046,2732.7,2731.3,1.34322164]
[1769781494607,12.60329046,2732.7,2731.5,13.66730594]
[1769781495113,12.60329046,2732.5,2731.5,13.66730594]
[1769781495318,13.37029046,2732.5,2731.5,13.66730594]
[1769781501429,13.37029046,2732.5,2731.3,14.99951194]
[1769781501630,13.37029046,2732.5,2731.7,0.002]
[1769781508538,12.60329046,2732.1,2731.3,1.332206]
[1769781508741,12.60329046,2731.9,2731.3,1.332206]
[1769781508908,12.60329046,2731.7,2730.7,0.01301564]
[1769781509109,12.60329046,2731.7,2730.7,13.66930594]
[1769781510229,12.60329046,2731.7,2730.8,0.01101564]
[1769781510734,12.60329046,2731.7,2730.7,13.6582903]
[1769781510942,12.60329046,2731.7,2730.8,0.01101564]
[1769781511312,12.60329046,2731.7,2730.7,13.6582903]
[1769781511842,12.60329046,2731.7,2730.7,0.002]
[1769781512240,12.60329046,2731.3,2730.5,0.002]
[1769781512411,13.86361951,2731.2,2730.5,0.002]
[1769781512612,0.768,2731.1,2730.5,0.002]
[1769781514214,0.768,2731.1,2730.7,0.002]
[1769781518548,13.87792225,2731.8,2730.7,12.79479971]
[1769781518845,15.93131447,2731.7,2730.7,12.79479971]
[1769781519041,15.93131447,2731.7,2730.7,0.002]
[1769781520832,15.93131447,2731.7,2730.7,12.79479971]
[1769781521348,0.768,2731.6,2730.7,12.79479971]
[1769781522552,0.768,2731.5,2731.0,12.79279971]
[1769781524428,13.77552225,2731.9,2731.0,12.79279971]
[1769781524631,0.768,2731.8,2731.0,12.79279971]
[1769781526261,0.001,2731.3,2731.0,12.79279971]
[1769781527545,0.001,2731.3,2730.8,12.79279971]
[1769781527860,0.001,2731.3,2730.7,0.002]
[1769781528165,0.001,2731.3,2730.7,12.79479971]
[1769781532275,0.001,2731.3,2730.8,12.79279971]
[1769781533004,0.001,2731.3,2730.7,0.002]
[1769781535497,13.77652225,2731.3,2730.7,0.002]
[1769781536080,15.15417447,2731.3,2730.7,0.002]
[1769781537306,15.15417447,2731.3,2730.5,0.002]
[1769781537307,13.77552225,2731.0,2730.3,0.002]
[1769781539445,13.77552225,2730.9,2730.0,0.002]
[1769781539680,0.001,2731.1,2730.0,0.002]
[1769781539681,13.77552225,2730.7,2730.0,0.002]
[1769781540068,13.77552225,2730.7,2729.9,0.002]
[1769781541582,13.77552225,2730.9,2729.9,12.79479971]
[1769781541753,0.768,2730.8,2729.9,12.79479971]
[1769781543251,0.001,2731.1,2730.1,12.79279971]
[1769781543450,0.768,2730.8,2730.1,12.79279971]
[1769781543860,0.001,2731.1,2730.1,12.79279971]
[1769781544065,0.768,2731.0,2730.1,12.79279971]
[1769781544887,0.001,2731.1,2730.1,12.79279971]
[1769781545057,0.768,2731.0,2730.3,12.79279971]
[1769781545252,0.001,2731.1,2730.3,12.79279971]
[1769781547191,0.001,2731.1,2730.4,27.21677605]
[1769781547391,0.001,2731.1,2730.5,12.71677605]
[1769781547895,1.37266339,2732.1,2730.8,12.71677605]
[1769781547896,0.1024,2732.0,2730.8,12.71677605]
[1769781548078,14.53485082,2731.9,2730.8,12.71677605]
[1769781548985,14.53485082,2731.9,2730.9,14.5]
[1769781549296,5.37614814,2732.2,2731.0,12.71677605]
[1769781549297,13.76685082,2732.2,2731.0,12.71677605]
[1769781549599,0.001,2732.3,2731.3,12.72779169]
[1769781549755,0.001,2732.3,2731.5,12.71677605]
[1769781549961,0.001,2732.3,2731.6,14.5]
[1769781550212,0.001,2732.3,2731.5,12.71677605]
[1769781550692,0.001,2732.3,2731.6,14.5]
[1769781551191,15.63896385,2732.9,2731.7,12.71677605]
[1769781551486,15.63896385,2732.9,2731.8,13.25549243]
[1769781551487,0.768,2732.7,2731.8,13.25549243]
[1769781552475,1.87211303,2732.9,2731.8,13.25549243]
[1769781552662,1.87211303,2732.9,2731.9,0.01101564]
[1769781552863,1.87211303,2732.9,2732.0,12.71677605]
[1769781553058,1.87211303,2732.9,2732.1,13.72207294]
[1769781555227,13.76685082,2734.0,2732.6,12.71677605]
[1769781556022,13.76685082,2734.0,2732.7,14.5]
[1769781556404,13.76685082,2733.8,2732.7,14.5]
[1769781556729,13.76685082,2733.6,2732.7,14.5]
[1769781557223,13.76685082,2733.6,2732.1,1.00529689]
[1769781557429,13.76685082,2733.6,2732.1,13.72207294]
[1769781557918,13.76685082,2733.6,2732.1,28.22207294]
[1769781558795,1.45348508,2733.7,2732.1,28.22207294]
[1769781558796,13.76685082,2733.4,2732.1,28.22207294]
[1769781559007,15.2203359,2733.3,2732.2,0.53871638]
[1769781559211,13.76685082,2733.1,2731.7,1.60830253]
[1769781559721,13.76685082,2733.1,2731.7,16.10830253]
[1769781561241,13.76685082,2733.1,2731.7,28.82507858]
[1769781563915,0.767,2733.0,2731.7,28.82507858]
[1769781564122,15.2202359,2732.9,2731.7,28.82507858]
[1769781564529,15.2202359,2732.9,2731.7,16.10830253]
[1769781564838,0.767,2732.8,2731.8,12.71677605]
[1769781565738,1.45348508,2733.3,2732.1,12.71677605]
[1769781565739,0.767,2733.0,2732.1,12.71677605]
[1769781566441,0.001,2733.4,2732.3,12.71677605]
[1769781566739,0.001,2733.4,2732.4,0.01101564]
[1769781566921,0.767,2733.3,2732.4,12.72779169]
[1769781567440,0.767,2733.3,2732.4,12.71677605]
[1769781568839,14.53385082,2733.3,2732.1,14.5]
[1769781569046,13.76685082,2733.1,2731.9,0.767]
[1769781569246,13.76685082,2733.1,2731.7,14.33609422]
[1769781569546,1.45348508,2733.2,2731.7,14.33609422]
[1769781569547,13.76685082,2732.9,2731.7,14.32507858]
[1769781570841,13.76685082,2732.9,2731.7,1.60830253]
[1769781571046,13.76685082,2732.9,2731.8,14.5]
[1769781571245,13.76685082,2732.9,2731.8,27.21677605]
[1769781571547,13.76685082,2732.9,2731.8,14.5]
[1769781571730,1.38692508,2732.8,2731.8,14.5]
[1769781574155,1.38692508,2732.8,2731.8,27.21677605]
[1769781574556,1.38692508,2732.8,2731.9,0.002]
[1769781575457,15.1537759,2732.8,2731.9,0.002]
[1769781576358,0.767,2732.7,2731.9,0.002]
[1769781576521,1.59207759,2732.6,2731.9,0.002]
[1769781578262,15.48713847,2732.6,2731.9,0.002]
[1769781578474,13.89506088,2732.4,2731.7,1.60830253]
[1769781578927,0.1024,2732.5,2731.7,1.60830253]
[1769781579559,13.99746088,2732.5,2731.7,1.60830253]
[1769781579758,15.29480697,2732.4,2731.7,1.60830253]
[1769781580660,0.767,2732.3,2731.7,1.60830253]
[1769781581026,14.66206088,2732.3,2731.7,1.60830253]
[1769781584329,14.66206088,2732.3,2731.6,0.002]
[1769781586447,14.66206088,2732.3,2731.9,0.002]
[1769781586745,1.6061807,2732.2,2731.9,0.002]
[1769781588135,0.768,2732.3,2731.9,0.002]
[1769781595584,14.66306088,2732.3,2731.9,0.002]
[1769781595890,0.768,2732.3,2731.9,0.002]
[1769781596275,3.65898284,2733.0,2731.9,0.002]
[1769781596276,13.89506088,2733.1,2732.0,12.97678528]
[1769781596481,13.99746088,2732.8,2731.9,0.002]
[1769781596664,0.768,2732.7,2731.9,0.002]
[1769781598292,0.001,2732.1,2731.9,0.002]
[1769781601204,0.769,2732.1,2731.9,0.002]
[1769781601403,0.769,2732.1,2731.9,0.001]
[1769781601594,2.23540609,2732.1,2731.9,3.99e-06]
[1769781601798,16.13046697,2732.1,2731.6,0.002]
[1769781602000,1.46740609,2732.1,2731.6,0.002]
[1769781602204,0.768,2732.0,2731.6,0.002]
[1769781602370,0.001,2732.1,2731.6,0.002]
[1769781602569,0.001,2732.1,2731.6,12.97878528]
[1769781602770,0.768,2732.0,2731.6,12.97878528]
[1769781603168,0.768,2732.4,2731.7,12.97678528]
[1769781603384,0.768,2732.4,2731.8,12.97678528]
[1769781603804,13.89506088,2732.8,2731.8,12.97678528]
[1769781604007,0.768,2732.7,2731.8,12.97678528]
[1769781604215,0.768,2732.6,2731.8,12.97678528]